[Event "January 2 Early 2024"]
[Site "https://www.chess.com"]
[Date "2024.01.02"]
[Round "8"]
[White "Tasev, Dejan"]
[Black "Devaev, Alexander"]
[Result "1-0"]
[Board "68"]
[TimeControl "180+1"]
[WhiteFideId "936618"]
[BlackFideId "4169395"]
[WhiteElo "2709"]
[BlackElo "2511"]
[WhiteTeam "SRB"]
[BlackTeam "RUS"]
[WhiteClock "0:00:14"]
[BlackClock "0:00:00"]

1. e4 {[%clk 0:03:00]}  c6 {[%clk 0:02:59]} 2. d4 {[%clk 0:03:00]}  d5 {[%clk 0:03:00]} 3. Nc3 {[%clk 0:03:00]}  dxe4 {[%clk 0:03:00]} 4. Nxe4 {[%clk 0:03:00]}  Bf5 {[%clk 0:03:01]} 5. Ng3 {[%clk 0:03:00]}  Bg6 {[%clk 0:03:01]} 6. Nf3 {[%clk 0:03:00]}  Nd7 {[%clk 0:03:01]} 7. Bc4 {[%clk 0:03:00]}  e6 {[%clk 0:03:01]} 8. Bb3 {[%clk 0:03:00]}  Bd6 {[%clk 0:03:01]} 9. c3 {[%clk 0:02:59]}  Ngf6 {[%clk 0:03:01]} 10. Qe2 {[%clk 0:02:59]}  Qc7 {[%clk 0:03:01]} 11. O-O {[%clk 0:02:58]}  O-O {[%clk 0:03:02]} 12. Nh4 {[%clk 0:02:58]}  Rfe8 {[%clk 0:03:01]} 13. Nxg6 {[%clk 0:02:58]}  hxg6 {[%clk 0:03:02]} 14. f4 {[%clk 0:02:48]}  c5 {[%clk 0:02:51]} 15. Be3 {[%clk 0:02:45]}  Rad8 {[%clk 0:02:44]} 16. h4 {[%clk 0:02:41]}  cxd4 {[%clk 0:02:40]} 17. cxd4 {[%clk 0:02:39]}  Nb6 {[%clk 0:02:30]} 18. h5 {[%clk 0:02:38]}  gxh5 {[%clk 0:02:29]} 19. Nxh5 {[%clk 0:02:30]}  Nxh5 {[%clk 0:02:30]} 20. Qxh5 {[%clk 0:02:30]}  Nd5 {[%clk 0:02:31]} 21. Rac1 {[%clk 0:02:17]}  Qb6 {[%clk 0:02:15]} 22. Bf2 {[%clk 0:01:53]}  Bxf4 {[%clk 0:01:57]} 23. Rce1 {[%clk 0:01:43]}  Qc7 {[%clk 0:01:46]} 24. Qf3 {[%clk 0:01:28]}  Bh6 {[%clk 0:01:10]} 25. g3 {[%clk 0:01:20]}  Nf6 {[%clk 0:00:58]} 26. Kg2 {[%clk 0:01:13]}  Qc6 {[%clk 0:00:42]} 27. d5 {[%clk 0:01:03]}  exd5 {[%clk 0:00:28]} 28. Bd4 {[%clk 0:00:54]}  Rxe1 {[%clk 0:00:22]} 29. Rxe1 {[%clk 0:00:53]}  Bg5 {[%clk 0:00:23]} 30. Rf1 {[%clk 0:00:41]}  b6 {[%clk 0:00:16]} 31. Qf5 {[%clk 0:00:36]}  Bh6 {[%clk 0:00:08]} 32. Rh1 {[%clk 0:00:29]}  Ne4 {[%clk 0:00:04]} 33. Rf1 {[%clk 0:00:21]}  Qe6 {[%clk 0:00:03]} 34. Qxe6 {[%clk 0:00:15]}  fxe6 {[%clk 0:00:00]} 35. Re1 {[%clk 0:00:14]} 1-0

[Event "January 2 Early 2024"]
[Site "https://www.chess.com"]
[Date "2024.01.02"]
[Round "8"]
[White "Gritsenko, Nikolai"]
[Black "Srdanovic, Jovana"]
[Result "0-1"]
[Board "70"]
[TimeControl "180+1"]
[WhiteFideId "14112493"]
[BlackFideId "954810"]
[WhiteElo "2676"]
[BlackElo "2510"]
[WhiteTeam "UKR"]
[BlackTeam "SRB"]
[WhiteClock "0:00:00"]
[BlackClock "0:01:04"]

1. f3 {[%clk 0:03:00]}  d5 {[%clk 0:02:58]} 2. c3 {[%clk 0:03:00]}  e5 {[%clk 0:02:58]} 3. Na3 {[%clk 0:02:59]}  Nc6 {[%clk 0:02:56]} 4. g3 {[%clk 0:02:57]}  f5 {[%clk 0:02:55]} 5. Nh3 {[%clk 0:02:55]}  h6 {[%clk 0:02:53]} 6. Nf2 {[%clk 0:02:53]}  Nf6 {[%clk 0:02:53]} 7. Nc2 {[%clk 0:02:53]}  e4 {[%clk 0:02:49]} 8. d3 {[%clk 0:02:49]}  Be6 {[%clk 0:02:43]} 9. Be3 {[%clk 0:02:44]}  g5 {[%clk 0:02:36]} 10. Qd2 {[%clk 0:02:38]}  Bg7 {[%clk 0:02:33]} 11. O-O-O {[%clk 0:02:27]}  exf3 {[%clk 0:02:33]} 12. exf3 {[%clk 0:02:27]}  Qd7 {[%clk 0:02:34]} 13. h4 {[%clk 0:02:22]}  g4 {[%clk 0:02:32]} 14. f4 {[%clk 0:02:17]}  O-O-O {[%clk 0:02:31]} 15. Kb1 {[%clk 0:02:15]}  Rhe8 {[%clk 0:02:29]} 16. Bg2 {[%clk 0:02:13]}  Nh5 {[%clk 0:02:29]} 17. Rh2 {[%clk 0:01:56]}  Nxg3 {[%clk 0:02:28]} 18. h5 {[%clk 0:01:53]}  Bf7 {[%clk 0:02:28]} 19. b4 {[%clk 0:01:24]}  a6 {[%clk 0:02:26]} 20. d4 {[%clk 0:01:18]}  Nxh5 {[%clk 0:02:22]} 21. Nd3 {[%clk 0:01:17]}  Ng3 {[%clk 0:02:12]} 22. Ne5 {[%clk 0:01:13]}  Nxe5 {[%clk 0:02:10]} 23. dxe5 {[%clk 0:01:04]}  Qa4 {[%clk 0:01:55]} 24. Bd4 {[%clk 0:00:45]}  Ne4 {[%clk 0:01:53]} 25. Qe3 {[%clk 0:00:39]}  h5 {[%clk 0:01:49]} 26. Bf1 {[%clk 0:00:38]}  Re6 {[%clk 0:01:44]} 27. Kb2 {[%clk 0:00:35]}  Rc6 {[%clk 0:01:42]} 28. Rc1 {[%clk 0:00:35]}  g3 {[%clk 0:01:40]} 29. Rh3 {[%clk 0:00:31]}  Rxc3 {[%clk 0:01:33]} 30. Qxe4 {[%clk 0:00:15]}  dxe4 {[%clk 0:01:29]} 31. Kxc3 {[%clk 0:00:16]}  Qxa2 {[%clk 0:01:24]} 32. Ra1 {[%clk 0:00:06]}  Qb3+ {[%clk 0:01:21]} 33. Kd2 {[%clk 0:00:05]}  e3+ {[%clk 0:01:20]} 34. Kc1 {[%clk 0:00:05]}  Bf8 {[%clk 0:01:13]} 35. Rxg3 {[%clk 0:00:04]}  Rxd4 {[%clk 0:01:05]} 36. Nxd4 {[%clk 0:00:02]}  Qc3+ {[%clk 0:01:05]} 37. Nc2 {[%clk 0:00:03]}  Bb3 {[%clk 0:01:04]} 38. Rg2 {[%clk 0:00:01]}  Bxb4 {[%clk 0:01:04]} 39. Rb1 {[%clk 0:00:00]}  Ba3+ {[%clk 0:01:04]} 0-1

[Event "January 2 Early 2024"]
[Site "https://www.chess.com"]
[Date "2024.01.02"]
[Round "8"]
[White "Kopczynski, Michal"]
[Black "Aldokhin, Ivan"]
[Result "1-0"]
[Board "71"]
[TimeControl "180+1"]
[WhiteFideId "1124200"]
[BlackFideId "24115720"]
[WhiteElo "2506"]
[BlackElo "2673"]
[WhiteTeam "POL"]
[BlackTeam "RUS"]
[WhiteClock "0:01:02"]
[BlackClock "0:00:02"]

1. e4 {[%clk 0:03:00]}  c5 {[%clk 0:03:00]} 2. d4 {[%clk 0:03:01]}  cxd4 {[%clk 0:02:59]} 3. c3 {[%clk 0:03:01]}  Nf6 {[%clk 0:02:53]} 4. Bd3 {[%clk 0:03:01]}  d5 {[%clk 0:02:51]} 5. e5 {[%clk 0:03:00]}  Nfd7 {[%clk 0:02:51]} 6. e6 {[%clk 0:02:55]}  Nf6 {[%clk 0:02:11]} 7. exf7+ {[%clk 0:02:55]}  Kxf7 {[%clk 0:02:12]} 8. cxd4 {[%clk 0:02:55]}  Bg4 {[%clk 0:02:13]} 9. Nf3 {[%clk 0:02:54]}  Bxf3 {[%clk 0:02:12]} 10. Qxf3 {[%clk 0:02:54]}  Nc6 {[%clk 0:02:12]} 11. Be3 {[%clk 0:02:45]}  e5 {[%clk 0:02:12]} 12. dxe5 {[%clk 0:02:38]}  Nxe5 {[%clk 0:02:11]} 13. Qe2 {[%clk 0:02:38]}  Bb4+ {[%clk 0:02:08]} 14. Nd2 {[%clk 0:02:38]}  Re8 {[%clk 0:01:50]} 15. O-O {[%clk 0:02:26]}  Neg4 {[%clk 0:01:50]} 16. Nf3 {[%clk 0:02:00]}  Nxe3 {[%clk 0:01:39]} 17. fxe3 {[%clk 0:02:00]}  Bc5 {[%clk 0:01:38]} 18. Kh1 {[%clk 0:01:50]}  Rxe3 {[%clk 0:01:29]} 19. Qc2 {[%clk 0:01:50]}  Qd6 {[%clk 0:00:53]} 20. Bxh7 {[%clk 0:01:45]}  Rh8 {[%clk 0:00:47]} 21. Qg6+ {[%clk 0:01:18]}  Kf8 {[%clk 0:00:27]} 22. Ng5 {[%clk 0:01:18]}  Qe7 {[%clk 0:00:25]} 23. Rac1 {[%clk 0:01:13]}  Re5 {[%clk 0:00:15]} 24. Rxc5 {[%clk 0:01:10]}  Qe8 {[%clk 0:00:02]} 25. Rc8 {[%clk 0:01:02]} 1-0

[Event "January 2 Early 2024"]
[Site "https://www.chess.com"]
[Date "2024.01.02"]
[Round "8"]
[White "Gutierrez Olivares, Daniel"]
[Black "Domingo Nunez, Alejandro"]
[Result "0-1"]
[Board "74"]
[TimeControl "180+1"]
[WhiteFideId "2264005"]
[BlackFideId "22245561"]
[WhiteElo "2490"]
[BlackElo "2666"]
[WhiteTeam "ESP"]
[BlackTeam "ESP"]
[WhiteClock "0:00:05"]
[BlackClock "0:00:18"]

1. Nf3 {[%clk 0:03:00]}  Nf6 {[%clk 0:02:05]} 2. c4 {[%clk 0:03:00]}  g6 {[%clk 0:02:06]} 3. g3 {[%clk 0:03:00]}  Bg7 {[%clk 0:02:06]} 4. Bg2 {[%clk 0:03:00]}  O-O {[%clk 0:02:07]} 5. O-O {[%clk 0:03:01]}  d6 {[%clk 0:02:08]} 6. Nc3 {[%clk 0:03:01]}  Nbd7 {[%clk 0:02:08]} 7. Rb1 {[%clk 0:03:02]}  c5 {[%clk 0:02:09]} 8. a3 {[%clk 0:03:02]}  Rb8 {[%clk 0:02:10]} 9. b4 {[%clk 0:03:02]}  b6 {[%clk 0:02:11]} 10. d3 {[%clk 0:03:02]}  Bb7 {[%clk 0:02:11]} 11. Bd2 {[%clk 0:03:02]}  a6 {[%clk 0:02:08]} 12. Qc2 {[%clk 0:02:53]}  Qc7 {[%clk 0:02:07]} 13. Rfc1 {[%clk 0:02:54]}  Rfc8 {[%clk 0:02:06]} 14. Qd1 {[%clk 0:02:54]}  Qd8 {[%clk 0:02:05]} 15. Qf1 {[%clk 0:02:54]}  Ng4 {[%clk 0:02:03]} 16. e4 {[%clk 0:02:49]}  Nge5 {[%clk 0:02:01]} 17. Ne1 {[%clk 0:02:49]}  Nc6 {[%clk 0:02:01]} 18. Ne2 {[%clk 0:02:46]}  Nde5 {[%clk 0:02:01]} 19. f4 {[%clk 0:02:43]}  Nd7 {[%clk 0:02:01]} 20. Be3 {[%clk 0:02:41]}  b5 {[%clk 0:02:01]} 21. cxb5 {[%clk 0:02:38]}  axb5 {[%clk 0:02:01]} 22. bxc5 {[%clk 0:02:39]}  Nxc5 {[%clk 0:02:00]} 23. Bxc5 {[%clk 0:02:33]}  dxc5 {[%clk 0:02:00]} 24. Rxb5 {[%clk 0:02:33]}  Nd4 {[%clk 0:01:56]} 25. Nxd4 {[%clk 0:02:28]}  Bxd4+ {[%clk 0:01:55]} 26. Kh1 {[%clk 0:02:28]}  Ba6 {[%clk 0:01:55]} 27. Rxb8 {[%clk 0:02:27]}  Rxb8 {[%clk 0:01:56]} 28. Bf3 {[%clk 0:01:53]}  Rb2 {[%clk 0:01:49]} 29. Be2 {[%clk 0:01:49]}  Be3 {[%clk 0:01:30]} 30. Rd1 {[%clk 0:01:46]}  Qa5 {[%clk 0:01:30]} 31. Ng2 {[%clk 0:01:36]}  Bd4 {[%clk 0:01:29]} 32. f5 {[%clk 0:01:27]}  Qxa3 {[%clk 0:01:25]} 33. fxg6 {[%clk 0:01:27]}  hxg6 {[%clk 0:01:25]} 34. Nf4 {[%clk 0:01:27]}  Bb7 {[%clk 0:01:11]} 35. h4 {[%clk 0:01:17]}  Qb3 {[%clk 0:01:08]} 36. Rc1 {[%clk 0:00:42]}  Be3 {[%clk 0:00:49]} 37. Re1 {[%clk 0:00:38]}  Bd2 {[%clk 0:00:44]} 38. Rd1 {[%clk 0:00:37]}  Bxf4 {[%clk 0:00:41]} 39. gxf4 {[%clk 0:00:38]}  Qc2 {[%clk 0:00:40]} 40. Re1 {[%clk 0:00:36]}  Qd2 {[%clk 0:00:28]} 41. h5 {[%clk 0:00:23]}  f5 {[%clk 0:00:20]} 42. Qg1 {[%clk 0:00:15]}  Qxf4 {[%clk 0:00:20]} 43. Qxg6+ {[%clk 0:00:12]}  Kf8 {[%clk 0:00:21]} 44. Qg2 {[%clk 0:00:09]}  Qh4+ {[%clk 0:00:18]} 45. Qh2 {[%clk 0:00:05]}  Qxe1+ {[%clk 0:00:18]} 0-1

[Event "January 2 Early 2024"]
[Site "https://www.chess.com"]
[Date "2024.01.02"]
[Round "8"]
[White "Azali, Tannaz"]
[Black "Koshulyan, Egor A."]
[Result "0-1"]
[Board "75"]
[TimeControl "180+1"]
[WhiteFideId "12537721"]
[BlackFideId "24237000"]
[WhiteElo "2489"]
[BlackElo "2664"]
[WhiteTeam "IRI"]
[BlackTeam "RUS"]
[WhiteClock "0:00:21"]
[BlackClock "0:00:10"]

1. e4 {[%clk 0:02:59]}  c5 {[%clk 0:02:59]} 2. Nf3 {[%clk 0:03:00]}  Nc6 {[%clk 0:03:00]} 3. Bb5 {[%clk 0:03:00]}  g5 {[%clk 0:03:00]} 4. h3 {[%clk 0:02:55]}  Nf6 {[%clk 0:03:00]} 5. Nc3 {[%clk 0:02:54]}  g4 {[%clk 0:02:52]} 6. hxg4 {[%clk 0:02:54]}  Nxg4 {[%clk 0:02:53]} 7. d3 {[%clk 0:02:54]}  Bg7 {[%clk 0:02:51]} 8. Ng5 {[%clk 0:02:47]}  Nf6 {[%clk 0:02:21]} 9. Be3 {[%clk 0:02:42]}  h6 {[%clk 0:02:17]} 10. Nh3 {[%clk 0:02:38]}  Nd4 {[%clk 0:02:14]} 11. Bc4 {[%clk 0:02:35]}  d6 {[%clk 0:02:13]} 12. Nf4 {[%clk 0:02:36]}  a6 {[%clk 0:02:10]} 13. Bxd4 {[%clk 0:02:35]}  cxd4 {[%clk 0:02:09]} 14. Nce2 {[%clk 0:02:36]}  Qb6 {[%clk 0:02:06]} 15. Bb3 {[%clk 0:02:34]}  Bg4 {[%clk 0:02:01]} 16. f3 {[%clk 0:02:31]}  Bd7 {[%clk 0:02:00]} 17. Qd2 {[%clk 0:02:31]}  h5 {[%clk 0:01:53]} 18. c3 {[%clk 0:02:06]}  Bh6 {[%clk 0:01:20]} 19. Qc2 {[%clk 0:01:41]}  Rc8 {[%clk 0:01:19]} 20. Nd5 {[%clk 0:01:42]}  Nxd5 {[%clk 0:01:17]} 21. Bxd5 {[%clk 0:01:42]}  Bg7 {[%clk 0:01:15]} 22. Qb3 {[%clk 0:01:35]}  Qxb3 {[%clk 0:01:13]} 23. Bxb3 {[%clk 0:01:36]}  dxc3 {[%clk 0:01:13]} 24. bxc3 {[%clk 0:01:36]}  Bxc3+ {[%clk 0:01:09]} 25. Nxc3 {[%clk 0:01:36]}  Rxc3 {[%clk 0:01:10]} 26. Kd2 {[%clk 0:01:36]}  Rc5 {[%clk 0:01:11]} 27. Rh4 {[%clk 0:01:34]}  Rg5 {[%clk 0:01:10]} 28. Rg1 {[%clk 0:01:24]}  Rhg8 {[%clk 0:01:10]} 29. Rh2 {[%clk 0:01:24]}  e6 {[%clk 0:01:05]} 30. Ke3 {[%clk 0:01:24]}  Ke7 {[%clk 0:01:04]} 31. Kf2 {[%clk 0:01:15]}  a5 {[%clk 0:01:00]} 32. Rb1 {[%clk 0:01:08]}  b5 {[%clk 0:00:56]} 33. d4 {[%clk 0:01:06]}  Rc8 {[%clk 0:00:52]} 34. Rbh1 {[%clk 0:01:06]}  a4 {[%clk 0:00:51]} 35. Bd1 {[%clk 0:01:06]}  Rc1 {[%clk 0:00:39]} 36. Be2 {[%clk 0:01:03]}  Rc2 {[%clk 0:00:38]} 37. Rxh5 {[%clk 0:01:02]}  Rxh5 {[%clk 0:00:38]} 38. Rxh5 {[%clk 0:01:03]}  Rxa2 {[%clk 0:00:39]} 39. Ke3 {[%clk 0:01:03]}  a3 {[%clk 0:00:37]} 40. Bxb5 {[%clk 0:01:03]}  Rxg2 {[%clk 0:00:30]} 41. Bxd7 {[%clk 0:01:03]}  Kxd7 {[%clk 0:00:30]} 42. Ra5 {[%clk 0:01:03]}  a2 {[%clk 0:00:31]} 43. d5 {[%clk 0:00:53]}  exd5 {[%clk 0:00:29]} 44. exd5 {[%clk 0:00:54]}  Ke7 {[%clk 0:00:28]} 45. Ke4 {[%clk 0:00:52]}  Kf6 {[%clk 0:00:28]} 46. Ra6 {[%clk 0:00:52]}  Ke7 {[%clk 0:00:27]} 47. Kf5 {[%clk 0:00:52]}  Rf2 {[%clk 0:00:22]} 48. f4 {[%clk 0:00:51]}  Kd7 {[%clk 0:00:21]} 49. Ra7+ {[%clk 0:00:51]}  Kc8 {[%clk 0:00:21]} 50. Kg5 {[%clk 0:00:38]}  Kb8 {[%clk 0:00:21]} 51. Ra3 {[%clk 0:00:33]}  Kb7 {[%clk 0:00:21]} 52. f5 {[%clk 0:00:33]}  Kb6 {[%clk 0:00:22]} 53. Kf6 {[%clk 0:00:32]}  Kc5 {[%clk 0:00:21]} 54. Ra5+ {[%clk 0:00:32]}  Kb4 {[%clk 0:00:20]} 55. Ra8 {[%clk 0:00:32]}  Kc4 {[%clk 0:00:20]} 56. Ra5 {[%clk 0:00:32]}  Kd4 {[%clk 0:00:16]} 57. Kxf7 {[%clk 0:00:31]}  Rxf5+ {[%clk 0:00:16]} 58. Ke6 {[%clk 0:00:31]}  Rf2 {[%clk 0:00:13]} 59. Kxd6 {[%clk 0:00:32]}  Kc4 {[%clk 0:00:13]} 60. Ke6 {[%clk 0:00:32]}  Kb4 {[%clk 0:00:14]} 61. Ra8 {[%clk 0:00:31]}  Re2+ {[%clk 0:00:15]} 62. Kd7 {[%clk 0:00:31]}  Re5 {[%clk 0:00:10]} 63. d6 {[%clk 0:00:31]}  Ra5 {[%clk 0:00:11]} 64. Rxa5 {[%clk 0:00:18]}  Kxa5 {[%clk 0:00:12]} 65. Ke8 {[%clk 0:00:18]}  a1=Q {[%clk 0:00:12]} 66. d7 {[%clk 0:00:19]}  Qh8+ {[%clk 0:00:12]} 67. Ke7 {[%clk 0:00:19]}  Qg7+ {[%clk 0:00:12]} 68. Ke8 {[%clk 0:00:19]}  Qe5+ {[%clk 0:00:12]} 69. Kf8 {[%clk 0:00:20]}  Qd6+ {[%clk 0:00:12]} 70. Ke8 {[%clk 0:00:20]}  Qe6+ {[%clk 0:00:13]} 71. Kd8 {[%clk 0:00:21]}  Kb6 {[%clk 0:00:13]} 72. Kc8 {[%clk 0:00:22]}  Qc6+ {[%clk 0:00:13]} 73. Kd8 {[%clk 0:00:22]}  Qe6 {[%clk 0:00:09]} 74. Kc8 {[%clk 0:00:22]}  Kc6 {[%clk 0:00:10]} 75. Kb8 {[%clk 0:00:21]}  Qxd7 {[%clk 0:00:10]} 0-1

[Event "January 2 Early 2024"]
[Site "https://www.chess.com"]
[Date "2024.01.02"]
[Round "8"]
[White "Skliarov, Viktor"]
[Black "Brankovic, Dejan"]
[Result "1/2-1/2"]
[Board "76"]
[TimeControl "180+1"]
[WhiteFideId "14106736"]
[BlackFideId "921602"]
[WhiteElo "2664"]
[BlackElo "2477"]
[WhiteTeam "UKR"]
[BlackTeam "SRB"]
[WhiteClock "0:00:16"]
[BlackClock "0:00:05"]

1. e4 {[%clk 0:03:00]}  c5 {[%clk 0:03:00]} 2. Nf3 {[%clk 0:03:00]}  g6 {[%clk 0:03:00]} 3. c3 {[%clk 0:02:58]}  Bg7 {[%clk 0:02:58]} 4. Bd3 {[%clk 0:02:56]}  e5 {[%clk 0:02:53]} 5. O-O {[%clk 0:02:55]}  Ne7 {[%clk 0:02:53]} 6. Bc2 {[%clk 0:02:54]}  Nbc6 {[%clk 0:02:52]} 7. d4 {[%clk 0:02:53]}  cxd4 {[%clk 0:02:52]} 8. cxd4 {[%clk 0:02:53]}  Nxd4 {[%clk 0:02:50]} 9. Nxd4 {[%clk 0:02:52]}  exd4 {[%clk 0:02:50]} 10. e5 {[%clk 0:02:50]}  Nc6 {[%clk 0:02:45]} 11. Na3 {[%clk 0:02:38]}  O-O {[%clk 0:02:42]} 12. Nc4 {[%clk 0:02:20]}  Nxe5 {[%clk 0:02:41]} 13. Nxe5 {[%clk 0:02:20]}  Bxe5 {[%clk 0:02:40]} 14. Re1 {[%clk 0:02:10]}  Bg7 {[%clk 0:02:38]} 15. Bf4 {[%clk 0:02:04]}  d6 {[%clk 0:02:27]} 16. Qd2 {[%clk 0:01:45]}  Be6 {[%clk 0:02:22]} 17. Rad1 {[%clk 0:01:39]}  Qb6 {[%clk 0:02:20]} 18. b3 {[%clk 0:01:34]}  Rac8 {[%clk 0:02:18]} 19. Be4 {[%clk 0:01:29]}  Rfe8 {[%clk 0:02:13]} 20. Bh6 {[%clk 0:01:25]}  Bh8 {[%clk 0:01:57]} 21. h4 {[%clk 0:01:18]}  Qc5 {[%clk 0:01:56]} 22. Bxb7 {[%clk 0:01:15]}  Rb8 {[%clk 0:01:44]} 23. Bf3 {[%clk 0:01:14]}  Qc3 {[%clk 0:01:36]} 24. Qf4 {[%clk 0:01:01]}  Qc5 {[%clk 0:01:16]} 25. Rc1 {[%clk 0:00:56]}  Qa3 {[%clk 0:01:06]} 26. Rc7 {[%clk 0:00:49]}  Qa5 {[%clk 0:00:50]} 27. Rec1 {[%clk 0:00:41]}  Qxa2 {[%clk 0:00:36]} 28. Qxd6 {[%clk 0:00:21]}  Qxb3 {[%clk 0:00:34]} 29. Re7 {[%clk 0:00:17]}  Red8 {[%clk 0:00:26]} 30. Qf4 {[%clk 0:00:13]}  d3 {[%clk 0:00:25]} 31. Rcc7 {[%clk 0:00:09]}  d2 {[%clk 0:00:20]} 32. Kh2 {[%clk 0:00:10]}  Re8 {[%clk 0:00:16]} 33. Rxe8+ {[%clk 0:00:08]}  Rxe8 {[%clk 0:00:16]} 34. Qxd2 {[%clk 0:00:08]}  Qa4 {[%clk 0:00:13]} 35. Bf4 {[%clk 0:00:06]}  Bf6 {[%clk 0:00:10]} 36. h5 {[%clk 0:00:05]}  a6 {[%clk 0:00:10]} 37. h6 {[%clk 0:00:05]}  Qb5 {[%clk 0:00:09]} 38. Bg3 {[%clk 0:00:05]}  Qf5 {[%clk 0:00:09]} 39. Qd6 {[%clk 0:00:04]}  Bg5 {[%clk 0:00:08]} 40. Qxa6 {[%clk 0:00:04]}  Bxh6 {[%clk 0:00:08]} 41. Qc6 {[%clk 0:00:03]}  Rf8 {[%clk 0:00:07]} 42. Bd6 {[%clk 0:00:02]}  Bf4+ {[%clk 0:00:06]} 43. Bxf4 {[%clk 0:00:03]}  Qxf4+ {[%clk 0:00:06]} 44. Kg1 {[%clk 0:00:04]}  Qd2 {[%clk 0:00:05]} 45. Qc3 {[%clk 0:00:03]}  Qxc3 {[%clk 0:00:05]} 46. Rxc3 {[%clk 0:00:04]}  Rd8 {[%clk 0:00:06]} 47. g3 {[%clk 0:00:04]}  Kg7 {[%clk 0:00:06]} 48. Kg2 {[%clk 0:00:05]}  h5 {[%clk 0:00:07]} 49. Re3 {[%clk 0:00:05]}  Kf6 {[%clk 0:00:07]} 50. Be2 {[%clk 0:00:05]}  Rd4 {[%clk 0:00:08]} 51. Bf3 {[%clk 0:00:05]}  Bd5 {[%clk 0:00:08]} 52. Bxd5 {[%clk 0:00:05]}  Rxd5 {[%clk 0:00:09]} 53. Rf3+ {[%clk 0:00:06]}  Ke6 {[%clk 0:00:08]} 54. Ra3 {[%clk 0:00:06]}  Re5 {[%clk 0:00:08]} 55. Ra6+ {[%clk 0:00:06]}  Kf5 {[%clk 0:00:07]} 56. Ra7 {[%clk 0:00:07]}  f6 {[%clk 0:00:07]} 57. Ra4 {[%clk 0:00:07]}  Rc5 {[%clk 0:00:07]} 58. Rb4 {[%clk 0:00:07]}  Kg5 {[%clk 0:00:07]} 59. Ra4 {[%clk 0:00:08]}  Kf5 {[%clk 0:00:07]} 60. Rb4 {[%clk 0:00:08]}  g5 {[%clk 0:00:08]} 61. Ra4 {[%clk 0:00:08]}  Re5 {[%clk 0:00:08]} 62. Rb4 {[%clk 0:00:08]}  Re4 {[%clk 0:00:07]} 63. Rb5+ {[%clk 0:00:09]}  Kg6 {[%clk 0:00:07]} 64. Rb6 {[%clk 0:00:09]}  Rc4 {[%clk 0:00:07]} 65. Rb5 {[%clk 0:00:09]}  Rc3 {[%clk 0:00:06]} 66. Rb4 {[%clk 0:00:09]}  Kf5 {[%clk 0:00:04]} 67. Rb5+ {[%clk 0:00:10]}  Kg6 {[%clk 0:00:05]} 68. Rb4 {[%clk 0:00:10]}  g4 {[%clk 0:00:05]} 69. Rb5 {[%clk 0:00:10]}  f5 {[%clk 0:00:05]} 70. Rb6+ {[%clk 0:00:10]}  Kg5 {[%clk 0:00:05]} 71. Rb5 {[%clk 0:00:10]}  Rc4 {[%clk 0:00:04]} 72. Ra5 {[%clk 0:00:11]}  Rd4 {[%clk 0:00:04]} 73. Rb5 {[%clk 0:00:11]}  Rd2 {[%clk 0:00:05]} 74. Ra5 {[%clk 0:00:11]}  Rc2 {[%clk 0:00:05]} 75. Rb5 {[%clk 0:00:11]}  Rc7 {[%clk 0:00:06]} 76. Ra5 {[%clk 0:00:12]}  Rf7 {[%clk 0:00:06]} 77. Rc5 {[%clk 0:00:12]}  h4 {[%clk 0:00:07]} 78. gxh4+ {[%clk 0:00:12]}  Kxh4 {[%clk 0:00:07]} 79. Rc8 {[%clk 0:00:12]}  Kg5 {[%clk 0:00:07]} 80. Rc5 {[%clk 0:00:12]}  Rd7 {[%clk 0:00:06]} 81. Ra5 {[%clk 0:00:12]}  Rd3 {[%clk 0:00:07]} 82. Ra4 {[%clk 0:00:13]}  Rc3 {[%clk 0:00:07]} 83. Ra8 {[%clk 0:00:12]}  Rc4 {[%clk 0:00:05]} 84. Ra7 {[%clk 0:00:12]}  Kf4 {[%clk 0:00:06]} 85. Ra8 {[%clk 0:00:13]}  Rc2 {[%clk 0:00:06]} 86. Ra4+ {[%clk 0:00:13]}  Kg5 {[%clk 0:00:06]} 87. Ra5 {[%clk 0:00:13]}  Kf4 {[%clk 0:00:06]} 88. Ra4+ {[%clk 0:00:13]}  Kg5 {[%clk 0:00:05]} 89. Ra5 {[%clk 0:00:13]}  Rd2 {[%clk 0:00:05]} 90. Rb5 {[%clk 0:00:13]}  Rd7 {[%clk 0:00:06]} 91. Rb8 {[%clk 0:00:13]}  Rf7 {[%clk 0:00:06]} 92. Rg8+ {[%clk 0:00:13]}  Kf4 {[%clk 0:00:06]} 93. Ra8 {[%clk 0:00:13]}  Re7 {[%clk 0:00:06]} 94. Ra4+ {[%clk 0:00:14]}  Re4 {[%clk 0:00:06]} 95. Ra5 {[%clk 0:00:14]}  Re5 {[%clk 0:00:07]} 96. Ra4+ {[%clk 0:00:15]}  Kg5 {[%clk 0:00:07]} 97. Ra8 {[%clk 0:00:15]}  f4 {[%clk 0:00:07]} 98. Rg8+ {[%clk 0:00:16]}  Kf5 {[%clk 0:00:08]} 99. Rf8+ {[%clk 0:00:16]}  Ke4 {[%clk 0:00:08]} 100. Rg8 {[%clk 0:00:15]}  Kf5 {[%clk 0:00:07]} 101. Rf8+ {[%clk 0:00:15]}  Kg5 {[%clk 0:00:07]} 102. Rg8+ {[%clk 0:00:16]}  Kh4 {[%clk 0:00:08]} 103. Rh8+ {[%clk 0:00:16]}  Rh5 {[%clk 0:00:08]} 104. Rg8 {[%clk 0:00:16]}  f3+ {[%clk 0:00:08]} 105. Kh2 {[%clk 0:00:16]}  Rh6 {[%clk 0:00:07]} 106. Rg7 {[%clk 0:00:16]}  Rd6 {[%clk 0:00:07]} 107. Rh7+ {[%clk 0:00:15]}  Kg5 {[%clk 0:00:07]} 108. Rg7+ {[%clk 0:00:16]}  Kf4 {[%clk 0:00:06]} 109. Rf7+ {[%clk 0:00:16]}  Kg5 {[%clk 0:00:06]} 110. Kg3 {[%clk 0:00:16]}  Rd1 {[%clk 0:00:05]} 111. Rg7+ {[%clk 0:00:16]}  Kf5 {[%clk 0:00:04]} 112. Rf7+ {[%clk 0:00:16]}  Kg5 {[%clk 0:00:04]} 113. Rg7+ {[%clk 0:00:16]}  Kf5 {[%clk 0:00:04]} 114. Rf7+ {[%clk 0:00:16]}  Kg5 {[%clk 0:00:05]} 1/2-1/2

[Event "January 2 Early 2024"]
[Site "https://www.chess.com"]
[Date "2024.01.02"]
[Round "8"]
[White "Sztokbant, Bernardo Vainzoff"]
[Black "Feuerstack, Aljoscha"]
[Result "0-1"]
[Board "79"]
[TimeControl "180+1"]
[WhiteFideId "2115956"]
[BlackFideId "4681932"]
[WhiteElo "2441"]
[BlackElo "2653"]
[WhiteTeam "BRA"]
[BlackTeam "GER"]
[WhiteClock "0:01:16"]
[BlackClock "0:00:57"]

1. d4 {[%clk 0:03:00]}  d5 {[%clk 0:02:58]} 2. Nf3 {[%clk 0:03:00]}  Nf6 {[%clk 0:02:58]} 3. Bf4 {[%clk 0:03:01]}  g6 {[%clk 0:02:58]} 4. e3 {[%clk 0:03:01]}  Bg7 {[%clk 0:02:58]} 5. Be2 {[%clk 0:03:02]}  O-O {[%clk 0:02:59]} 6. O-O {[%clk 0:03:03]}  c5 {[%clk 0:02:57]} 7. h3 {[%clk 0:03:02]}  Qb6 {[%clk 0:02:53]} 8. Nc3 {[%clk 0:03:00]}  cxd4 {[%clk 0:02:48]} 9. exd4 {[%clk 0:02:59]}  Nc6 {[%clk 0:02:33]} 10. a3 {[%clk 0:02:47]}  Rd8 {[%clk 0:02:23]} 11. Re1 {[%clk 0:02:41]}  Ne4 {[%clk 0:02:19]} 12. Na4 {[%clk 0:02:22]}  Qa5 {[%clk 0:02:16]} 13. c3 {[%clk 0:02:16]}  e5 {[%clk 0:01:20]} 14. b4 {[%clk 0:02:10]}  Qc7 {[%clk 0:01:20]} 15. Bg3 {[%clk 0:01:56]}  Nxg3 {[%clk 0:01:12]} 16. fxg3 {[%clk 0:01:57]}  e4 {[%clk 0:01:11]} 17. Nh2 {[%clk 0:01:54]}  Qxg3 {[%clk 0:01:11]} 18. Nf1 {[%clk 0:01:54]}  Qg5 {[%clk 0:01:08]} 19. Qc1 {[%clk 0:01:46]}  Qh4 {[%clk 0:01:01]} 20. Nc5 {[%clk 0:01:25]}  Nxd4 {[%clk 0:00:59]} 21. cxd4 {[%clk 0:01:21]}  Bxd4+ {[%clk 0:01:00]} 22. Kh2 {[%clk 0:01:21]}  Bxh3 {[%clk 0:00:58]} 23. gxh3 {[%clk 0:01:16]}  Qf2+ {[%clk 0:00:57]} 0-1